fUSD/lending_fUSD_20250826
["ID","MTS","AMOUNT","RATE_DAILY","PERIOD"]
[381382220,1756173032919,-400.55927542,0.00016438,2]
[381382221,1756173032928,-400.39592666,0.00016438,2]
[381382222,1756173032938,-400.0,0.00016438,2]
[381382223,1756173032948,-401.55718002,0.00016438,2]
[381382224,1756173032958,-400.0,0.00016438,2]
[381382225,1756173032967,-400.0,0.00016438,2]
[381382226,1756173032979,-400.0,0.00016438,2]
[381382227,1756173032990,-522.11,0.00016438,2]
[381382228,1756173033000,-516.7,0.00016438,2]
[381382229,1756173033011,-400.26,0.00016438,2]
[381382230,1756173033020,-400.0,0.00016438,2]
[381382231,1756173033029,-793.59,0.00016438,2]
[381382232,1756173033039,-746.37,0.00016438,2]
[381382233,1756173033049,-669.29,0.00016438,2]
[381382234,1756173033059,-400.0,0.00016438,2]
[381382235,1756173033068,-400.0,0.00016438,2]
[381382236,1756173033078,-400.0,0.00016438,2]
[381382237,1756173033088,-809.35,0.00016438,2]
[381382238,1756173033098,-753.38,0.00016438,2]
[381382239,1756173033107,-400.0,0.00016438,2]
[381382240,1756173033117,-400.0,0.00016438,2]
[381382241,1756173033127,-400.0,0.00016438,2]
[381382242,1756173033137,-757.15,0.00016438,2]
[381382243,1756173033147,-400.0,0.00016438,2]
[381382244,1756173033157,-400.0,0.00016438,2]
[381382245,1756173033167,-721.44,0.00016438,2]
[381382246,1756173033178,-400.0,0.00016438,2]
[381382247,1756173033187,-400.0,0.00016438,2]
[381382248,1756173033197,-400.0,0.00016438,2]
[381382249,1756173033207,-778.36,0.00016438,2]
[381382250,1756173033222,-1110.06,0.00016438,2]
[381382251,1756173033232,-840.27,0.00016438,2]
[381382252,1756173033242,-400.0,0.00016438,2]
[381382253,1756173033252,-952.94,0.00016438,2]
[381382254,1756173033263,-400.0,0.00016438,2]
[381382255,1756173033272,-400.0,0.00016438,2]
[381382256,1756173033282,-657.84,0.00016438,2]
[381382257,1756173033292,-400.0,0.00016438,2]
[381382258,1756173033307,-691.48,0.00016438,2]
[381382259,1756173033318,-622.37,0.00016438,2]
[381382260,1756173033327,-511.25,0.00016438,2]
[381382261,1756173033338,-750.86,0.00016438,2]
[381382262,1756173033348,-917.18,0.00016438,2]
[381382263,1756173033358,-400.0,0.00016438,2]
[381382264,1756173033368,-845.46,0.00016438,2]
[381382265,1756173033378,-1257.43,0.00016438,2]
[381382266,1756173033387,-434.47,0.00016438,2]
[381382267,1756173033398,-493.22,0.00016438,2]
[381382268,1756173033408,-705.63,0.00016438,2]
[381382269,1756173033417,-400.0,0.00016438,2]
[381382270,1756173033427,-400.0,0.00016438,2]
[381382271,1756173033436,-400.64424175,0.00016438,2]
[381382272,1756173033446,-669.25,0.00016438,2]
[381382273,1756173033456,-509.27,0.00016438,2]
[381382274,1756173033465,-400.0,0.00016438,2]
[381382275,1756173033475,-818.45,0.00016438,2]
[381382276,1756173033484,-711.65,0.00016438,2]
[381382277,1756173033494,-400.0,0.00016438,2]
[381382278,1756173033503,-400.0,0.00016438,2]
[381382279,1756173033513,-400.0,0.00016438,2]
[381382280,1756173033522,-793.74,0.00016438,2]
[381382281,1756173033532,-1127.03,0.00016438,2]
[381382282,1756173033541,-843.11,0.00016438,2]
[381382283,1756173033553,-500.0,0.00016438,2]
[381382284,1756173033563,-500.0,0.00016438,2]
[381382285,1756173033572,-500.0,0.00016438,2]
[381382286,1756173033582,-500.0,0.00016438,2]
[381382287,1756173033591,-500.0,0.00016438,2]
[381382288,1756173033601,-500.0,0.00016438,2]
[381382289,1756173033611,-417.05277732,0.00016438,2]
[381382290,1756173033621,-743.92,0.00016438,2]
[381382291,1756173033631,-1403.59,0.00016438,2]
[381382292,1756173033640,-400.0,0.00016438,2]
[381382293,1756173033651,-400.0,0.00016438,2]
[381382294,1756173033660,-400.0,0.00016438,2]
[381382295,1756173033670,-1319.52,0.00016438,2]
[381382296,1756173033680,-581.87,0.00016438,2]
[381382297,1756173033690,-409.18,0.00016438,2]
[381382298,1756173033699,-847.29,0.00016438,2]
[381382299,1756173033710,-595.25,0.00016438,2]
[381382300,1756173033874,-1049.5,0.00016438,2]
[381382301,1756173033886,-1628.8,0.00016438,2]
[381382302,1756173033895,-667.61,0.00016438,2]
[381382303,1756173033905,-400.0,0.00016438,2]
[381382304,1756173033915,-488.49,0.00016438,2]
[381382305,1756173033925,-400.0,0.00016438,2]
[381382306,1756173033935,-522.56,0.00016438,2]
[381382307,1756173033945,-586.76,0.00016438,2]
[381382308,1756173033954,-400.0,0.00016438,2]
[381382309,1756173033964,-601.42,0.00016438,2]
[381382310,1756173033974,-505.66,0.00016438,2]
[381382311,1756173033985,-1385.22,0.00016438,2]
[381382312,1756173033995,-400.0,0.00016438,2]
[381382313,1756173034004,-400.0,0.00016438,2]
[381382314,1756173034013,-436.34,0.00016438,2]
[381382315,1756173034022,-440.18,0.00016438,2]
[381382316,1756173034032,-660.51,0.00016438,2]
[381382317,1756173034041,-525.58,0.00016438,2]
[381382318,1756173034054,-400.0,0.00016438,2]
[381382319,1756173034063,-401.7,0.00016438,2]
[381382320,1756173034073,-545.19,0.00016438,2]
[381382321,1756173034084,-489.32,0.00016438,2]
[381382322,1756173034094,-1421.15,0.00016438,2]
[381382323,1756173034103,-1148.13,0.00016438,2]
[381382324,1756173034113,-400.0,0.00016438,2]
[381382325,1756173034122,-731.52,0.00016438,2]
[381382326,1756173034132,-400.0,0.00016438,2]
[381382327,1756173034142,-430.35,0.00016438,2]
[381382328,1756173034152,-400.0,0.00016438,2]
[381382329,1756173034163,-400.0,0.00016438,2]
[381382330,1756173034172,-400.0,0.00016438,2]
[381382331,1756173034182,-1003.23,0.00016438,2]
[381382332,1756173034191,-1351.51,0.00016438,2]
[381382333,1756173034200,-652.99,0.00016438,2]
[381382334,1756173034210,-564.59,0.00016438,2]
[381382335,1756173034223,-564.59,0.00016438,2]
[381382336,1756173034232,-564.59,0.00016438,2]
[381382337,1756173034241,-564.59,0.00016438,2]
[381382338,1756173034252,-564.59,0.00016438,2]
[381382339,1756173034263,-564.59,0.00016438,2]
[381382340,1756173034272,-564.59,0.00016438,2]
[381382341,1756173034282,-564.59,0.00016438,2]
[381382342,1756173034292,-564.59,0.00016438,2]
[381382343,1756173034305,-564.59,0.00016438,2]
[381382344,1756173034315,-564.59,0.00016438,2]
[381382345,1756173034324,-400.0,0.00016438,2]
[381382346,1756173034334,-641.84,0.00016438,2]
[381382347,1756173034343,-557.47,0.00016438,2]
[381382348,1756173034354,-870.48,0.00016438,2]
[381382349,1756173034364,-208.78533906,0.00016438,2]
[381382350,1756173034375,-680.98,0.00016438,2]
[381382351,1756173034386,-726.75,0.00016438,2]
[381382352,1756173034396,-400.0,0.00016438,2]
[381382353,1756173034407,-1287.66,0.00016438,2]
[381382354,1756173034420,-1221.13,0.00016438,2]
[381382355,1756173034430,-1236.96,0.00016438,2]
[381382356,1756173034441,-645.99,0.00016438,2]
[381382357,1756173034450,-1000.0,0.00016438,2]
[381382358,1756173034461,-400.0,0.00016438,2]
[381382359,1756173034470,-1184.69,0.00016438,2]
[381382360,1756173034480,-1130.32,0.00016438,2]
[381382361,1756173034490,-1043.67,0.00016438,2]
[381382362,1756173034500,-400.0,0.00016438,2]
[381382363,1756173034510,-605.38,0.00016438,2]
[381382364,1756173034520,-400.0,0.00016438,2]
[381382365,1756173034530,-511.23,0.00016438,2]
[381382366,1756173034540,-1266.31,0.00016438,2]
[381382367,1756173034552,-500.0,0.00016438,2]
[381382368,1756173034562,-500.0,0.00016438,2]
[381382369,1756173034572,-500.0,0.00016438,2]
[381382370,1756173034582,-500.0,0.00016438,2]
[381382371,1756173034600,-500.0,0.00016438,2]
[381382372,1756173034611,-500.0,0.00016438,2]
[381382373,1756173034621,-500.0,0.00016438,2]
[381382374,1756173034631,-502.07782175,0.00016438,2]
[381382375,1756173034640,-669.86,0.00016438,2]
[381382376,1756173034650,-902.29,0.00016438,2]
[381382377,1756173034659,-448.33,0.00016438,2]
[381382378,1756173034669,-476.01,0.00016438,2]
[381382379,1756173034679,-400.0,0.00016438,2]
[381382380,1756173034688,-604.33,0.00016438,2]
[381382381,1756173034698,-813.18,0.00016438,2]
[381382382,1756173034707,-400.0,0.00016438,2]
[381382383,1756173034717,-631.57,0.00016438,2]
[381382384,1756173034727,-1139.15,0.00016438,2]
[381382385,1756173034737,-400.0,0.00016438,2]
[381382386,1756173034746,-1637.26,0.00016438,2]
[381382387,1756173034755,-530.21,0.00016438,2]
[381382388,1756173034765,-1049.74,0.00016438,2]
[381382389,1756173034775,-195.86175473,0.00016438,2]
[381382390,1756173034786,-497.41,0.00016438,2]
[381382391,1756173034795,-543.61,0.00016438,2]
[381382392,1756173034806,-1644.51,0.00016438,2]
[381382393,1756173034816,-455.84,0.00016438,2]
[381382394,1756173034825,-431.92,0.00016438,2]
[381382395,1756173034835,-986.01,0.00016438,2]
[381382396,1756173034846,-588.13,0.00016438,2]
[381382397,1756173034855,-408.15,0.00016438,2]
[381382398,1756173034865,-436.05,0.00016438,2]
[381382399,1756173034874,-489.3,0.00016438,2]
[381382400,1756173034883,-486.23,0.00016438,2]
[381382401,1756173034892,-891.03,0.00016438,2]
[381382402,1756173034902,-1334.59,0.00016438,2]
[381382403,1756173034912,-484.06,0.00016438,2]
[381382404,1756173034921,-746.8,0.00016438,2]
[381382405,1756173034930,-775.74,0.00016438,2]
[381382406,1756173034939,-642.79,0.00016438,2]
[381382407,1756173034949,-488.0,0.00016438,2]
[381382408,1756173034959,-400.0,0.00016438,2]
[381382409,1756173034969,-400.0,0.00016438,2]
[381382410,1756173034978,-400.61224355,0.00016438,2]
[381382411,1756173034988,-400.0,0.00016438,2]
[381382412,1756173034997,-400.0,0.00016438,2]
[381382413,1756173035007,-540.17,0.00016438,2]
[381382414,1756173035016,-400.0,0.00016438,2]
[381382415,1756173035026,-823.49,0.00016438,2]
[381382416,1756173035036,-1036.1,0.00016438,2]
[381382417,1756173035051,-1071.98,0.00016438,2]
[381382418,1756173035061,-400.0,0.00016438,2]
[381382419,1756173035070,-742.7,0.00016438,2]
[381382420,1756173035080,-932.48,0.00016438,2]
[381382421,1756173035091,-403.89988932,0.00016438,2]
[381382422,1756173035102,-856.32,0.00016438,2]
[381382423,1756173035112,-400.0,0.00016438,2]
[381382424,1756173035122,-400.42076444,0.00016438,2]
[381382425,1756173035131,-400.34796775,0.00016438,2]
[381382426,1756173035141,-400.0,0.00016438,2]
[381382427,1756173035151,-556.24,0.00016438,2]
[381382428,1756173035161,-1983.9,0.00016438,2]
[381382429,1756173035171,-774.3,0.00016438,2]
[381382430,1756173035181,-821.98,0.00016438,2]
[381382431,1756173035191,-400.0,0.00016438,2]
[381382432,1756173035200,-935.94,0.00016438,2]
[381382433,1756173035210,-985.25,0.00016438,2]
[381382434,1756173035222,-780.92,0.00016438,2]
[381382435,1756173035232,-730.24,0.00016438,2]
[381382436,1756173035241,-400.57508626,0.00016438,2]
[381382437,1756173035251,-996.13,0.00016438,2]
[381382438,1756173035263,-400.0,0.00016438,2]
[381382439,1756173035275,-765.81,0.00016438,2]
[381382440,1756173035295,-606.98,0.00016438,2]
[381382441,1756173035307,-400.7308784,0.00016438,2]
[381382442,1756173035316,-824.01,0.00016438,2]
[381382443,1756173035327,-400.0,0.00016438,2]
[381382444,1756173035337,-524.5,0.00016438,2]
[381382445,1756173035347,-1006.55,0.00016438,2]
[381382446,1756173035356,-649.91,0.00016438,2]
[381382447,1756173035366,-400.0,0.00016438,2]
[381382448,1756173035375,-400.0,0.00016438,2]
[381382449,1756173035385,-400.0,0.00016438,2]
[381382450,1756173035394,-787.5,0.00016438,2]
[381382451,1756173035403,-400.0,0.00016438,2]
[381382452,1756173035414,-523.08,0.00016438,2]
[381382453,1756173035423,-420.06,0.00016438,2]
[381382454,1756173035432,-1075.04,0.00016438,2]
[381382455,1756173035444,-501.05,0.00016438,2]
[381382456,1756173035454,-400.0,0.00016438,2]
[381382457,1756173035463,-1012.33,0.00016438,2]
[381382458,1756173035473,-678.34,0.00016438,2]
[381382459,1756173035482,-827.16,0.00016438,2]
[381382460,1756173035492,-1176.89,0.00016438,2]
[381382461,1756173035503,-400.0,0.00016438,2]
[381382462,1756173035512,-458.52,0.00016438,2]
[381382463,1756173035523,-400.0,0.00016438,2]
[381382464,1756173035533,-400.0,0.00016438,2]
[381382465,1756173035543,-415.47,0.00016438,2]
[381382466,1756173035555,-862.67,0.00016438,2]
[381382467,1756173035565,-2012.31,0.00016438,2]
[381382468,1756173035575,-400.0,0.00016438,2]
[381382469,1756173035585,-566.99,0.00016438,2]
[381382470,1756173035595,-400.0,0.00016438,2]
[381382471,1756173035605,-1235.24,0.00016438,2]
[381382472,1756173035614,-400.0,0.00016438,2]
[381382473,1756173035624,-543.52,0.00016438,2]
[381382474,1756173035633,-1005.79,0.00016438,2]
[381382475,1756173035643,-1208.39,0.00016438,2]
[381382476,1756173035652,-520.88,0.00016438,2]
[381382477,1756173035662,-507.47,0.00016438,2]
[381382478,1756173035671,-681.64,0.00016438,2]
[381382479,1756173035682,-400.0,0.00016438,2]
[381382480,1756173035692,-400.0,0.00016438,2]
[381382481,1756173035702,-400.0,0.00016438,2]
[381382482,1756173035712,-1542.39,0.00016438,2]
[381382483,1756173035722,-842.56,0.00016438,2]
[381382484,1756173035731,-2514.76,0.00016438,2]
[381382485,1756173035741,-994.83,0.00016438,2]
[381382486,1756173035751,-400.0,0.00016438,2]
[381382487,1756173035760,-780.23,0.00016438,2]
[381382488,1756173035770,-450.31,0.00016438,2]
[381382489,1756173035780,-400.0,0.00016438,2]
[381382490,1756173035790,-400.0,0.00016438,2]
[381382491,1756173035800,-400.0,0.00016438,2]
[381382492,1756173035809,-946.34,0.00016438,2]
[381382493,1756173035820,-1294.87,0.00016438,2]
[381382494,1756173035829,-402.18,0.00016438,2]
[381382495,1756173035839,-432.0,0.00016438,2]
[381382496,1756173035848,-688.3,0.00016438,2]
[381382497,1756173035857,-860.45,0.00016438,2]
[381382498,1756173035867,-400.0,0.00016438,2]
[381382499,1756173035876,-400.0,0.00016438,2]
[381382500,1756173035886,-400.0,0.00016438,2]
[381382501,1756173035895,-400.0,0.00016438,2]
[381382502,1756173035905,-665.38,0.00016438,2]
[381382503,1756173035914,-469.37,0.00016438,2]
[381382504,1756173035923,-831.6,0.00016438,2]
[381382505,1756173035933,-764.28,0.00016438,2]
[381382506,1756173035942,-5121.72,0.00016438,2]
[381382507,1756173035951,-1041.01,0.00016438,2]
[381382508,1756173035960,-909.82,0.00016438,2]
[381382509,1756173035970,-740.06,0.00016438,2]
[381382510,1756173035979,-2520.37,0.00016438,2]
[381382511,1756173035989,-676.16,0.00016438,2]
[381382512,1756173035998,-400.0,0.00016438,2]
[381382513,1756173036008,-400.0,0.00016438,2]
[381382514,1756173036017,-1157.49,0.00016438,2]
[381382515,1756173036032,-711.33,0.00016438,2]
[381382516,1756173036042,-700.01,0.00016438,2]
[381382517,1756173036051,-400.0,0.00016438,2]
[381382518,1756173036060,-400.0,0.00016438,2]
[381382519,1756173036070,-400.0,0.00016438,2]
[381382520,1756173036079,-524.1,0.00016438,2]
[381382521,1756173036088,-400.0,0.00016438,2]
[381382522,1756173036098,-516.72,0.00016438,2]
[381382523,1756173036107,-1319.6,0.00016438,2]
[381382524,1756173036117,-1417.81,0.00016438,2]
[381382525,1756173036126,-400.0,0.00016438,2]
[381382526,1756173036135,-1292.28,0.00016438,2]
[381382527,1756173036146,-400.0,0.00016438,2]
[381382528,1756173036155,-402.79387703,0.00016438,2]
[381382529,1756173036165,-400.0,0.00016438,2]
[381382530,1756173036183,-780.26,0.00016438,2]
[381382531,1756173036197,-2076.4,0.00016438,2]
[381382532,1756173036206,-1431.14,0.00016438,2]
[381382533,1756173036217,-400.0,0.00016438,2]
[381382534,1756173036229,-615.35,0.00016438,2]
[381382535,1756173036238,-328.549663,0.00016438,2]
[381382536,1756173036247,-400.0,0.00016438,2]
[381382537,1756173036256,-400.0,0.00016438,2]
[381382538,1756173036267,-665.77,0.00016438,2]
[381382539,1756173036276,-1354.77,0.00016438,2]
[381382540,1756173036285,-400.0,0.00016438,2]
[381382541,1756173036295,-1208.32,0.00016438,2]
[381382542,1756173036305,-928.43,0.00016438,2]
[381382543,1756173036314,-1323.516395,0.00016438,2]
[381382544,1756173036324,-1030.66,0.00016438,2]
[381382545,1756173036333,-759.42,0.00016438,2]
[381382546,1756173036343,-484.23,0.00016438,2]
[381382547,1756173036352,-400.0,0.00016438,2]
[381382548,1756173036362,-485.81,0.00016438,2]
[381382549,1756173036371,-787.9,0.00016438,2]
[381382550,1756173036381,-702.2,0.00016438,2]
[381382551,1756173036392,-400.0,0.00016438,2]
[381382552,1756173036402,-736.73,0.00016438,2]
[381382553,1756173036413,-993.91,0.00016438,2]
[381382554,1756173036423,-486.99062378,0.00016438,2]
[381382555,1756173036433,-154.466311,0.00016438,2]
[381382556,1756173036443,-400.0,0.00016438,2]
[381382557,1756173036453,-869.08,0.00016438,2]
[381382558,1756173036463,-1408.58,0.00016438,2]
[381382559,1756173036472,-158.700485,0.00016438,2]
[381382560,1756173036481,-400.0,0.00016438,2]
[381382561,1756173036490,-580.02,0.00016438,2]
[381382562,1756173036499,-400.0,0.00016438,2]
[381382563,1756173036509,-400.0,0.00016438,2]
[381382564,1756173036518,-400.0,0.00016438,2]
[381382565,1756173036527,-400.0,0.00016438,2]
[381382566,1756173036537,-161.380768,0.00016438,2]
[381382567,1756173036546,-269.448743,0.00016438,2]
[381382568,1756173036560,-400.0,0.00016438,2]
[381382569,1756173036570,-572.69,0.00016438,2]
[381382570,1756173036579,-623.96,0.00016438,2]
[381382571,1756173036589,-400.0,0.00016438,2]
[381382572,1756173036598,-400.0,0.00016438,2]
[381382573,1756173036607,-435.05,0.00016438,2]
[381382574,1756173036616,-633.33,0.00016438,2]
[381382575,1756173036626,-1122.26,0.00016438,2]
[381382576,1756173036636,-400.0,0.00016438,2]
[381382577,1756173036645,-958.68,0.00016438,2]
[381382578,1756173036654,-400.0,0.00016438,2]
[381382579,1756173036664,-400.0,0.00016438,2]
[381382580,1756173036674,-1034.73,0.00016438,2]
[381382581,1756173036683,-400.0,0.00016438,2]
[381382582,1756173036693,-400.0,0.00016438,2]
[381382583,1756173036702,-527.65,0.00016438,2]
[381382584,1756173036712,-721.36,0.00016438,2]
[381382585,1756173036722,-445.65,0.00016438,2]
[381382586,1756173036731,-400.0,0.00016438,2]
[381382587,1756173036740,-940.03,0.00016438,2]
[381382588,1756173036749,-606.62,0.00016438,2]
[381382589,1756173036758,-3099.91,0.00016438,2]
[381382590,1756173036767,-1978.71,0.00016438,2]
[381382591,1756173036776,-400.0,0.00016438,2]
[381382592,1756173036786,-400.0,0.00016438,2]
[381382593,1756173036795,-680.77,0.00016438,2]
[381382594,1756173036810,-544.81,0.00016438,2]
[381382595,1756173036819,-400.0,0.00016438,2]
[381382596,1756173036828,-430.63,0.00016438,2]
[381382597,1756173036837,-835.29,0.00016438,2]
[381382598,1756173036846,-400.0,0.00016438,2]
[381382599,1756173036856,-400.0,0.00016438,2]
[381382600,1756173036865,-400.0,0.00016438,2]
[381382601,1756173036874,-709.62,0.00016438,2]
[381382602,1756173036883,-400.0,0.00016438,2]
[381382603,1756173036892,-400.0,0.00016438,2]
[381382604,1756173036901,-400.0,0.00016438,2]
[381382605,1756173036910,-1091.52,0.00016438,2]
[381382606,1756173036920,-400.0,0.00016438,2]
[381382607,1756173036929,-520.13,0.00016438,2]
[381382608,1756173036938,-1008.56,0.00016438,2]
[381382609,1756173036947,-882.38,0.00016438,2]
[381382610,1756173036957,-724.6,0.00016438,2]
[381382611,1756173036966,-509.86,0.00016438,2]
[381382612,1756173036975,-669.06,0.00016438,2]
[381382613,1756173036985,-400.7717817,0.00016438,2]
[381382614,1756173036994,-400.0,0.00016438,2]
[381382615,1756173037003,-400.0,0.00016438,2]
[381382616,1756173037012,-609.35,0.00016438,2]
[381382617,1756173037021,-400.0,0.00016438,2]
[381382618,1756173037030,-400.0,0.00016438,2]
[381382619,1756173037039,-401.6677633,0.00016438,2]
[381382620,1756173037050,-421.17,0.00016438,2]
[381382621,1756173037059,-649.64,0.00016438,2]
[381382622,1756173037069,-707.18,0.00016438,2]
[381382623,1756173037078,-400.0,0.00016438,2]
[381382624,1756173037087,-905.55,0.00016438,2]
[381382625,1756173037096,-862.91,0.00016438,2]
[381382626,1756173037106,-400.0,0.00016438,2]
[381382627,1756173037115,-400.0,0.00016438,2]
[381382628,1756173037126,-641.63,0.00016438,2]
[381382629,1756173037134,-510.22,0.00016438,2]
[381382630,1756173037144,-455.21813036,0.00016438,2]
[381382631,1756173037153,-400.45858048,0.00016438,2]
[381382632,1756173037162,-1352.18,0.00016438,2]
[381382633,1756173037171,-400.0,0.00016438,2]
[381382634,1756173037181,-1243.28,0.00016438,2]
[381382635,1756173037191,-1649.36,0.00016438,2]
[381382636,1756173037200,-1236.59,0.00016438,2]
[381382637,1756173037209,-921.07,0.00016438,2]
[381382638,1756173037220,-400.0,0.00016438,2]
[381382639,1756173037230,-695.89,0.00016438,2]
[381382640,1756173037239,-400.0,0.00016438,2]
[381382641,1756173037249,-569.5,0.00016438,2]
[381382642,1756173037259,-400.0,0.00016438,2]
[381382643,1756173037268,-400.0,0.00016438,2]
[381382644,1756173037277,-1013.39,0.00016438,2]
[381382645,1756173037286,-400.0,0.00016438,2]
[381382646,1756173037297,-1540.04,0.00016438,2]
[381382647,1756173037308,-1545.01,0.00016438,2]
[381382648,1756173037318,-400.0,0.00016438,2]
[381382649,1756173037327,-1294.97,0.00016438,2]
[381382650,1756173037336,-400.0,0.00016438,2]
[381382651,1756173037347,-400.0,0.00016438,2]
[381382652,1756173037356,-693.13,0.00016438,2]
[381382653,1756173037366,-400.0,0.00016438,2]
[381382654,1756173037375,-400.0,0.00016438,2]
[381382655,1756173037384,-400.49997087,0.00016438,2]
[381382656,1756173037393,-400.0,0.00016438,2]
[381382657,1756173037402,-677.37,0.00016438,2]
[381382658,1756173037411,-400.0,0.00016438,2]
[381382659,1756173037420,-522.14,0.00016438,2]
[381382660,1756173037429,-400.0,0.00016438,2]
[381382661,1756173037439,-1187.79,0.00016438,2]
[381382662,1756173037448,-728.54,0.00016438,2]
[381382663,1756173037459,-400.0,0.00016438,2]
[381382664,1756173037469,-400.0,0.00016438,2]
[381382665,1756173037479,-400.0,0.00016438,2]
[381382666,1756173037488,-421.86,0.00016438,2]
[381382667,1756173037498,-682.93,0.00016438,2]
[381382668,1756173037507,-1214.32,0.00016438,2]
[381382669,1756173037516,-400.0,0.00016438,2]
[381382670,1756173037526,-391.67356078,0.00016438,2]
[381382671,1756173037535,-485.53,0.00016438,2]
[381382672,1756173037545,-595.53,0.00016438,2]
[381382673,1756173037555,-1029.71,0.00016438,2]
[381382674,1756173037565,-500.0,0.00016438,2]
[381382675,1756173037574,-968.3,0.00016438,2]
[381382676,1756173037583,-400.0,0.00016438,2]
[381382677,1756173037592,-400.0,0.00016438,2]
[381382678,1756173037602,-2317.01,0.00016438,2]
[381382679,1756173037611,-400.0,0.00016438,2]
[381382680,1756173037620,-1206.82,0.00016438,2]
[381382681,1756173037629,-2161.32,0.00016438,2]
[381382682,1756173037640,-727.38,0.00016438,2]
[381382683,1756173037651,-685.28,0.00016438,2]
[381382684,1756173037660,-989.41,0.00016438,2]
[381382685,1756173037670,-810.26,0.00016438,2]
[381382686,1756173037681,-500.0,0.00016438,2]
[381382687,1756173037691,-500.0,0.00016438,2]
[381382688,1756173037700,-500.0,0.00016438,2]
[381382689,1756173037710,-500.0,0.00016438,2]
[381382690,1756173037719,-500.0,0.00016438,2]
[381382691,1756173037727,-500.0,0.00016438,2]
[381382692,1756173037737,-400.0,0.00016438,2]
[381382693,1756173037746,-500.0,0.00016438,2]
[381382694,1756173037756,-500.0,0.00016438,2]
[381382695,1756173037765,-400.0,0.00016438,2]
[381382696,1756173037775,-500.0,0.00016438,2]
[381382697,1756173037784,-500.0,0.00016438,2]
[381382698,1756173037793,-531.27656251,0.00016438,2]
[381382699,1756173037803,-1461.71,0.00016438,2]
[381382700,1756173037812,-400.0,0.00016438,2]
[381382701,1756173037820,-400.0,0.00016438,2]
[381382702,1756173037829,-979.22,0.00016438,2]
[381382703,1756173037838,-532.73,0.00016438,2]
[381382704,1756173037847,-681.62,0.00016438,2]
[381382705,1756173037857,-848.54,0.00016438,2]
[381382707,1756173037868,-1268.92,0.00016438,2]
[381382708,1756173037877,-400.0,0.00016438,2]
[381382709,1756173037886,-1367.76,0.00016438,2]
[381382710,1756173037896,-918.7,0.00016438,2]
[381382711,1756173037906,-1089.18,0.00016438,2]
[381382712,1756173037915,-400.0,0.00016438,2]
[381382713,1756173037927,-589.8,0.00016438,2]
[381382714,1756173037936,-400.0,0.00016438,2]
[381382715,1756173037947,-809.52,0.00016438,2]
[381382716,1756173037957,-453.56,0.00016438,2]
[381382717,1756173037967,-731.02,0.00016438,2]
[381382718,1756173037978,-1253.64,0.00016438,2]
[381382719,1756173037991,-2413.28,0.00016438,2]
[381382720,1756173038002,-998.58,0.00016438,2]